fUST/lending_fUST_20241204
["ID","MTS","AMOUNT","RATE_DAILY","PERIOD"]
[344041461,1733241709451,176.790562,0.00027492,2]
[344041464,1733241866293,24900.0,0.00027493,2]
[344041468,1733241936165,-220.17043373,0.000284,2]
[344041469,1733241936186,-238.20645015,0.00028489,2]
[344041473,1733242050156,-370.339797,0.00028267,2]
[344041475,1733242145146,-1169.27083333,0.00028133,2]
[344041476,1733242145167,-300.0,0.00028299,2]
[344041477,1733242145189,-300.0,0.00028299,2]
[344041478,1733242145209,-5828.4390604,0.000283,7]
[344041479,1733242151114,-722.54,0.0002849,3]
[344041480,1733242151140,-396.71061121,0.00028499,2]
[344041481,1733242151167,-500.0,0.00028499,2]
[344041482,1733242151198,-269.90773276,0.00028499,2]
[344041483,1733242151222,-217.07463893,0.00028499,2]
[344041484,1733242151251,-200.0140999,0.00028499,2]
[344041485,1733242151274,-338.30663297,0.00028499,2]
[344041486,1733242151297,-614.31901101,0.00028499,2]
[344041487,1733242151320,-644.42679389,0.00028499,2]
[344041488,1733242151343,-500.0,0.00028499,2]
[344041489,1733242151365,-500.0,0.00028499,2]
[344041490,1733242151390,-500.0,0.00028499,2]
[344041491,1733242151412,-476.32346829,0.00028499,2]
[344041492,1733242151435,-500.0,0.00028499,2]
[344041493,1733242151458,-315.64180527,0.00028499,2]
[344041494,1733242151483,-12420.01594767,0.000285,2]
[344041495,1733242151506,-43644.16026635,0.000285,5]
[344041496,1733242153191,-3903.18,0.0002849,10]
[344041497,1733242153218,-37658.47475956,0.000285,5]
[344041498,1733242155118,-28897.74006189,0.000285,5]
[344041502,1733242168168,-3252.65,0.0002849,10]
[344041503,1733242168191,-6210.00797383,0.000285,2]
[344041504,1733242168215,-186525.39319314,0.000285,5]
[344041505,1733242169641,1169.27083333,0.000284,2]
[344041506,1733242171156,-4984.62481406,0.000285,5]
[344041517,1733242200669,192.64912947,0.00028421,2]
[344041554,1733242234323,-500.0,0.00028473,5]
[344041556,1733242234336,-300.0,0.00028499,2]
[344041557,1733242234346,-300.0,0.00028499,2]
[344041559,1733242234357,-6445.02950033,0.000285,5]
[344041567,1733242234431,-44237.11809859,0.000285,5]
[344041595,1733242240342,-1637.72471069,0.0002849,10]
[344041596,1733242240357,-1072.81528931,0.0002849,10]
[344041597,1733242240367,-286062.44131684,0.000285,5]
[344041600,1733242240605,-16768.24,0.000285,5]
[344041601,1733242241358,164.472713,0.00013973,2]
[344041607,1733242243510,-29461.45653467,0.000285,5]
[344041608,1733242243522,-9841.90493075,0.000285,5]
[344041609,1733242243534,-3578.98685098,0.000285,5]
[344041614,1733242243734,-5026.26725533,0.000285,5]
[344041648,1733242245920,1169.27083333,0.000284,2]
[344041658,1733242246518,-1736.64743588,0.000285,5]
[344041659,1733242246530,-7629.44579023,0.000285,5]
[344041660,1733242246584,-7418.0751004,0.000285,5]
[344041672,1733242333578,408.64576332,0.00028,2]
[344041673,1733242333604,449591.35423668,0.00028,2]
[344041676,1733242499224,24900.0,0.00027483,2]
[344041679,1733242509201,698.6783225,0.00027483,2]
[344041684,1733242574999,165.47202,0.00027201,2]
[344041690,1733242791121,247.6110732,0.00027461,2]
[344041699,1733243120677,24900.0,0.00027413,2]
[344041700,1733243127577,1169.27083333,0.00028,2]
[344041702,1733243145963,166.19038,0.00013973,2]
[344041706,1733243226112,-1169.27083333,0.00028123,2]
[344041707,1733243226135,-668.94020978,0.000284,2]
[344041708,1733243226157,-300.0,0.00028472,2]
[344041709,1733243226177,-300.0,0.00028472,2]
[344041710,1733243226198,-500.0,0.00028473,5]
[344041711,1733243226219,-500.0,0.00028473,5]
[344041712,1733243226239,-198.60346822,0.00028473,5]
[344041716,1733243235095,-317.01,0.0002849,3]
[344041717,1733243235117,-158.5,0.0002849,3]
[344041718,1733243235144,-55.26481746,0.0002849,3]
[344041719,1733243235266,-420.27518254,0.0002849,3]
[344041720,1733243235289,-867.71073679,0.0002849,10]
[344041722,1733243241130,-410.61411116,0.0002849,10]
[344041723,1733243247102,-2024.0523525,0.0002849,10]
[344041724,1733243268807,52565.94389763,0.00028,7]
[344041736,1733243361138,-1169.27083333,0.00028134,2]
[344041737,1733243361159,-3000.0,0.000284,7]
[344041738,1733243361180,-300.0,0.00028489,2]
[344041739,1733243361200,-187.44609788,0.00028489,2]
[344041740,1733243369145,-112.55390212,0.00028489,2]
[344041741,1733243369166,-158.5,0.0002849,3]
[344041742,1733243369187,-475.52,0.0002849,3]
[344041743,1733243369209,-1205.11417805,0.0002849,10]
[344041746,1733243370341,722.50980611,0.000284,2]
[344041748,1733243415234,2371.26110298,0.00027376,30]
[344041749,1733243415255,2090.40509702,0.00027376,30]
[344041750,1733243421074,1031.37487265,0.00028154,2]
[344041786,1733243432708,-137.89596068,0.00028154,2]
[344041787,1733243432718,-500.0,0.00028473,5]
[344041788,1733243432729,-303.22842701,0.00028473,5]
[344041789,1733243432740,-160.08218147,0.00028473,2]
[344041790,1733243432751,-1393.56,0.0002849,10]
[344041791,1733243432761,-423.34869428,0.0002849,10]
[344041792,1733243432795,-2033.23130572,0.0002849,10]
[344041794,1733243432805,-827.25428272,0.0002849,10]
[344041831,1733243438541,-1421.63,0.0002849,10]
[344041833,1733243438551,-300.0,0.00028498,2]
[344041835,1733243438562,-300.0,0.00028498,2]
[344041838,1733243438577,-631.33309707,0.00028499,2]
[344041840,1733243438592,-364.72512424,0.00028499,2]
[344041843,1733243438608,-174.2555539,0.00028499,2]
[344041845,1733243438619,-188.40056808,0.00028499,2]
[344041848,1733243438633,-500.0,0.00028499,2]
[344041850,1733243438647,-660.79931598,0.00028499,2]
[344041853,1733243438661,-171.52230487,0.000285,2]
[344041855,1733243438677,-92993.92995991,0.000285,2]
[344041857,1733243438691,-660.79931598,0.000285,2]
[344041860,1733243438705,-44675.27623575,0.000285,5]
[344041890,1733243439098,-4179203.4147623,0.000285,5]
[344041905,1733243440503,-47864.76847759,0.000285,5]
[344041909,1733243440691,-3412.1931335,0.000285,5]
[344041928,1733243443647,-17194.97619924,0.000285,5]
[344041929,1733243443659,-8295.15363723,0.000285,5]
[344041930,1733243443671,-4830.08687013,0.000285,5]
[344041931,1733243443706,-5903.94189844,0.000285,5]
[344041982,1733243446574,-2251.12675938,0.000285,5]
[344041983,1733243446633,-224.89470583,0.000285,5]
[344041984,1733243446645,-660.62635661,0.000285,5]
[344041985,1733243446695,-58.97497972,0.000285,5]
[344041986,1733243475638,217.7949331,0.00024953,2]
[344041996,1733243867753,164.590994,0.00013973,2]
[344042011,1733244356126,-160.19442958,0.000255,7]
[344042016,1733244441201,-347.83557042,0.000255,7]
[344042017,1733244441224,-72.67024435,0.00027284,2]
[344042018,1733244445092,-87.32975665,0.00027284,2]
[344042019,1733244445114,-300.0,0.00027429,2]
[344042020,1733244445136,-9.01255198,0.00027429,2]
[344042023,1733244505792,164.590994,0.00013973,2]
[344042024,1733244545142,-6448.057852,0.00027164,2]
[344042025,1733244545162,-159.655214,0.00027234,2]
[344042026,1733244545183,-300.0,0.00027997,2]
[344042027,1733244545203,-688.0,0.00027997,2]
[344042028,1733244545224,-300.0,0.00027998,2]
[344042029,1733244545244,-1169.27083333,0.00028,2]
[344042030,1733244545264,-3040.61867039,0.00028467,2]
[344042031,1733244569128,-1670.76262915,0.00028467,2]
[344042032,1733244569149,-309.25890875,0.00028467,2]
[344042033,1733244569286,1169.27083333,0.0002743,2]
[344042058,1733244633758,-473.71754397,0.00028467,2]
[344042060,1733244633768,-3005.14,0.0002849,10]
[344042062,1733244633778,-2504.28,0.0002849,10]
[344042064,1733244633789,-317.0,0.0002849,3]
[344042066,1733244633809,-2086.9,0.0002849,10]
[344042067,1733244633826,-1739.09,0.0002849,10]
[344042068,1733244633837,-248.0,0.00028498,2]
[344042069,1733244633848,-300.0,0.00028498,2]
[344042070,1733244633859,-500.0,0.00028499,2]
[344042071,1733244633870,-500.0,0.00028499,2]
[344042072,1733244633880,-500.0,0.00028499,2]
[344042073,1733244633890,-500.0,0.00028499,2]
[344042074,1733244633903,-500.0,0.00028499,2]
[344042075,1733244633914,-322.10599945,0.00028499,2]
[344042076,1733244633924,-500.0,0.00028499,2]
[344042077,1733244633934,-458.58357139,0.000285,2]
[344042078,1733244633944,-110139.03446786,0.000285,5]
[344042117,1733244637806,-8526.23600152,0.000285,5]
[344042119,1733244637819,-141999.9999992,0.000285,5]
[344042125,1733244637864,-23103.77342556,0.000285,5]
[344042137,1733244637988,-1597.87232015,0.000285,5]
[344042140,1733244638002,-3945134.36386099,0.000285,5]
[344042142,1733244638012,-632.19608039,0.00028639,2]
[344042144,1733244638022,-782.97645269,0.00028739,2]
[344042146,1733244638031,-632.19608034,0.00028965,2]
[344042148,1733244638040,-782.97645269,0.00029012,2]
[344042150,1733244638050,-176.309606,0.00029066,2]
[344042152,1733244638060,-782.97645269,0.00029284,2]
[344042154,1733244638070,-632.19608034,0.0002929,2]
[344042156,1733244638080,-314.7029031,0.00029342,30]
[344042158,1733244638090,-155.7690759,0.00029342,30]
[344042160,1733244638099,-212.6978082,0.0002937,30]
[344042162,1733244638109,-782.97645269,0.00029557,2]
[344042164,1733244638118,-176.309606,0.00029609,2]
[344042166,1733244638128,-632.19608034,0.00029616,2]
[344042168,1733244638139,-155.08205975,0.00029618,2]
[344042170,1733244638150,-782.97645269,0.00029829,2]
[344042172,1733244638163,-500.0,0.00029869,4]
[344042175,1733244638173,-3000.0,0.000299,7]
[344042177,1733244638183,-632.19608034,0.00029942,2]
[344042179,1733244638192,-151.0,0.0003,120]
[344042181,1733244638202,-61215.59988686,0.0003,7]
[344042182,1733244638211,-510.0,0.0003,2]
[344042184,1733244638221,-363.0,0.0003,2]
[344042186,1733244638231,-1169.27083333,0.0003,7]
[344042189,1733244638241,-1169.27083333,0.0003,7]
[344042190,1733244638255,-153.0,0.00030027,30]
[344042192,1733244638271,-153.0,0.00030027,30]
[344042193,1733244638286,-153.0,0.00030027,30]
[344042195,1733244638298,-153.0,0.00030027,30]
[344042196,1733244638312,-153.0,0.00030027,30]
[344042198,1733244638326,-782.97645269,0.00030102,2]
[344042200,1733244638341,-171.52230488,0.00030136,2]
[344042201,1733244638354,-46496.96497995,0.00030136,2]
[344042203,1733244638374,-458.58357139,0.00030136,7]
[344042205,1733244638390,-500.0,0.00030136,7]
[344042206,1733244638403,-421.81202992,0.00030136,7]
[344042207,1733244638418,-625.07234563,0.00030136,7]
[344042209,1733244638431,-500.0,0.00030136,7]
[344042210,1733244638447,-500.0,0.00030136,7]
[344042211,1733244638459,-500.0,0.00030136,5]
[344042213,1733244638472,-574.1119942,0.00030136,7]
[344042214,1733244638483,-500.0,0.00030136,7]
[344042215,1733244638495,-500.0,0.00030136,7]
[344042216,1733244638508,-554.49230796,0.00030136,7]
[344042217,1733244638522,-582.00479756,0.00030136,7]
[344042218,1733244638536,-600.38616269,0.00030136,7]
[344042219,1733244638551,-500.0,0.00030136,7]
[344042220,1733244638566,-500.0,0.00030136,7]
[344042221,1733244638582,-500.0,0.00030136,7]
[344042222,1733244638596,-500.0,0.00030136,7]
[344042223,1733244638607,-391.65096,0.00030136,7]
[344042224,1733244638619,-500.0,0.00030136,7]
[344042225,1733244638632,-500.0,0.00030136,7]
[344042226,1733244638647,-500.0,0.00030136,7]
[344042227,1733244638662,-500.0,0.00030136,7]
[344042228,1733244638674,-500.0,0.00030136,7]
[344042229,1733244638686,-500.0,0.00030136,7]
[344042230,1733244638700,-500.0,0.00030136,7]
[344042231,1733244638713,-500.0,0.00030136,7]
[344042232,1733244638724,-500.0,0.00030136,7]
[344042233,1733244638736,-500.0,0.00030136,7]
[344042234,1733244638747,-500.0,0.00030136,7]
[344042235,1733244638761,-500.0,0.00030136,2]
[344042236,1733244638773,-500.0,0.00030136,2]
[344042237,1733244638784,-356.61633599,0.00030136,2]
[344042238,1733244638795,-500.0,0.00030136,7]
[344042239,1733244638807,-287.11223991,0.00030136,7]
[344042240,1733244638819,-500.0,0.00030136,7]
[344042241,1733244638830,-200.51471164,0.00030136,7]
[344042242,1733244638843,-500.0,0.00030136,7]
[344042243,1733244638854,-500.0,0.00030136,7]
[344042244,1733244638866,-500.0,0.00030136,7]
[344042245,1733244638879,-497.21009805,0.00030136,7]
[344042246,1733244638895,-633.1058356,0.00030136,7]
[344042247,1733244638909,-500.0,0.00030136,7]
[344042248,1733244638922,-498.58193212,0.00030136,7]
[344042249,1733244638933,-500.0,0.00030136,7]
[344042250,1733244638946,-500.0,0.00030136,7]
[344042251,1733244638957,-500.0,0.00030136,7]
[344042252,1733244638969,-500.0,0.00030136,7]
[344042253,1733244638981,-500.0,0.00030136,7]
[344042254,1733244638992,-500.0,0.00030136,7]
[344042255,1733244639004,-277.82145536,0.00030136,7]
[344042256,1733244639017,-500.0,0.00030136,7]
[344042257,1733244639028,-578.27,0.00030136,7]
[344042258,1733244639040,-500.0,0.00030136,7]
[344042259,1733244639052,-634.90993357,0.00030136,7]
[344042260,1733244639064,-500.0,0.00030136,7]
[344042261,1733244639076,-500.0,0.00030136,7]
[344042262,1733244639087,-500.0,0.00030136,7]
[344042263,1733244639100,-509.5159277,0.00030136,7]
[344042264,1733244639208,-500.0,0.00030136,7]
[344042266,1733244639225,-500.0,0.00030136,7]
[344042267,1733244639235,-500.0,0.00030136,7]
[344042268,1733244639245,-500.0,0.00030136,7]
[344042269,1733244639255,-503.12491722,0.00030136,7]
[344042270,1733244639264,-500.0,0.00030136,7]
[344042272,1733244639274,-612.69298005,0.00030136,7]
[344042274,1733244639294,-500.0,0.00030136,7]
[344042275,1733244639304,-503.21718793,0.00030136,7]
[344042276,1733244639315,-500.0,0.00030136,7]
[344042277,1733244639325,-500.0,0.00030136,7]
[344042279,1733244639335,-500.0,0.00030136,7]
[344042280,1733244639349,-500.0,0.00030136,7]
[344042281,1733244639359,-500.0,0.00030136,7]
[344042282,1733244639369,-505.76606692,0.00030136,7]
[344042283,1733244639380,-500.0,0.00030136,7]
[344042284,1733244639392,-500.0,0.00030136,7]
[344042285,1733244639402,-500.0,0.00030136,7]
[344042286,1733244639416,-506.07657769,0.00030136,7]
[344042287,1733244639426,-500.0,0.00030136,7]
[344042288,1733244639438,-551.9626408,0.00030136,7]
[344042289,1733244639448,-520.30589891,0.00030136,7]
[344042290,1733244639458,-406.99316598,0.00030136,7]
[344042291,1733244639468,-500.0,0.00030136,7]
[344042292,1733244639478,-500.0,0.00030136,7]
[344042293,1733244639489,-500.0,0.00030136,7]
[344042294,1733244639500,-514.13334904,0.00030136,7]
[344042295,1733244639510,-524.88035053,0.00030136,7]
[344042296,1733244639520,-500.0,0.00030136,7]
[344042297,1733244639529,-500.0,0.00030136,7]
[344042298,1733244639538,-500.0,0.00030136,7]
[344042299,1733244639548,-506.51660495,0.00030136,7]
[344042300,1733244639558,-500.0,0.00030136,7]
[344042301,1733244639567,-500.0,0.00030136,7]
[344042302,1733244639578,-500.0,0.00030136,7]
[344042303,1733244639588,-500.0,0.00030136,7]
[344042305,1733244639598,-500.0,0.00030136,7]
[344042306,1733244639608,-500.0,0.00030136,7]
[344042307,1733244639618,-526.35646344,0.00030136,7]
[344042308,1733244639628,-500.0,0.00030136,7]
[344042310,1733244639640,-200.0,0.00030136,7]
[344042312,1733244639651,-568.07219347,0.00030136,7]
[344042314,1733244639665,-500.0,0.00030136,7]
[344042315,1733244639675,-200.0,0.00030136,7]
[344042317,1733244639686,-500.0,0.00030136,7]
[344042319,1733244639696,-200.0,0.00030136,7]
[344042321,1733244639706,-500.0,0.00030136,7]
[344042322,1733244639716,-500.0,0.00030136,7]
[344042324,1733244639726,-200.0,0.00030136,7]
[344042326,1733244639737,-500.0,0.00030136,7]
[344042328,1733244639747,-500.0,0.00030136,7]
[344042329,1733244639756,-200.0,0.00030136,7]
[344042330,1733244639766,-500.0,0.00030136,7]
[344042332,1733244639776,-200.0,0.00030136,7]
[344042333,1733244639786,-500.0,0.00030136,7]
[344042334,1733244639796,-500.0,0.00030136,7]
[344042335,1733244639805,-200.0,0.00030136,7]
[344042337,1733244639815,-500.0,0.00030136,7]
[344042338,1733244639825,-500.0,0.00030136,7]
[344042339,1733244639835,-200.0,0.00030136,7]
[344042340,1733244639844,-500.0,0.00030136,7]
[344042341,1733244639854,-500.0,0.00030136,7]
[344042342,1733244639864,-200.0,0.00030136,7]
[344042343,1733244639875,-500.0,0.00030136,7]
[344042344,1733244639884,-500.0,0.00030136,7]
[344042345,1733244639894,-500.0,0.00030136,7]
[344042346,1733244639904,-263.38735712,0.00030136,7]
[344042348,1733244639915,-500.0,0.00030136,7]
[344042349,1733244639925,-500.0,0.00030136,7]
[344042351,1733244639935,-500.0,0.00030136,7]
[344042352,1733244639944,-500.0,0.00030136,7]
[344042353,1733244639954,-500.0,0.00030136,7]
[344042354,1733244639964,-500.0,0.00030136,7]
[344042355,1733244639974,-500.0,0.00030136,7]
[344042356,1733244639984,-500.0,0.00030136,7]
[344042357,1733244639993,-530.59246978,0.00030136,7]
[344042358,1733244640003,-500.0,0.00030136,7]
[344042359,1733244640013,-500.0,0.00030136,7]
[344042360,1733244640023,-500.0,0.00030136,7]
[344042361,1733244640033,-500.0,0.00030136,7]
[344042362,1733244640042,-500.0,0.00030136,7]
[344042363,1733244640051,-500.0,0.00030136,7]
[344042364,1733244640061,-500.0,0.00030136,7]
[344042365,1733244640071,-500.0,0.00030136,7]
[344042366,1733244640081,-500.0,0.00030136,7]
[344042367,1733244640091,-500.0,0.00030136,7]
[344042368,1733244640100,-500.0,0.00030136,7]
[344042369,1733244640110,-500.0,0.00030136,7]
[344042370,1733244640119,-505.13129299,0.00030136,7]
[344042371,1733244640129,-506.37078235,0.00030136,7]
[344042372,1733244640138,-225.86565065,0.00030136,7]
[344042373,1733244640148,-610.4614847,0.00030136,7]
[344042374,1733244640157,-500.0,0.00030136,7]
[344042375,1733244640168,-500.0,0.00030136,7]
[344042376,1733244640177,-500.0,0.00030136,7]
[344042377,1733244640187,-500.0,0.00030136,7]
[344042378,1733244640196,-500.0,0.00030136,7]
[344042379,1733244640206,-500.0,0.00030136,7]
[344042380,1733244640216,-500.0,0.00030136,7]
[344042381,1733244640226,-500.0,0.00030136,7]
[344042382,1733244640236,-500.0,0.00030136,7]
[344042383,1733244640245,-500.0,0.00030136,7]
[344042384,1733244640255,-500.0,0.00030136,7]
[344042385,1733244640264,-500.0,0.00030136,7]
[344042386,1733244640273,-500.0,0.00030136,7]
[344042387,1733244640283,-500.0,0.00030136,7]
[344042388,1733244640292,-500.0,0.00030136,7]
[344042389,1733244640301,-501.9880161,0.00030136,7]
[344042390,1733244640311,-500.0,0.00030136,7]
[344042391,1733244640320,-514.0303073,0.00030136,7]
[344042392,1733244640329,-500.0,0.00030136,7]
[344042393,1733244640339,-500.0,0.00030136,7]
[344042394,1733244640349,-500.0,0.00030136,7]
[344042395,1733244640361,-523.75190838,0.00030136,7]
[344042396,1733244640371,-500.0,0.00030136,7]
[344042397,1733244640380,-500.0,0.00030136,7]
[344042398,1733244640390,-500.0,0.00030136,7]
[344042399,1733244640400,-500.0,0.00030136,7]
[344042400,1733244640412,-511.62130349,0.00030136,7]
[344042401,1733244640422,-500.0,0.00030136,7]
[344042402,1733244640432,-500.0,0.00030136,7]
[344042403,1733244640442,-500.0,0.00030136,7]
[344042404,1733244640452,-560.4105563,0.00030136,7]
[344042405,1733244640461,-507.4702431,0.00030136,2]
[344042406,1733244640471,-500.0,0.00030136,7]
[344042407,1733244640480,-500.0,0.00030136,7]
[344042408,1733244640489,-500.0,0.00030136,7]
[344042409,1733244640499,-500.0,0.00030136,7]
[344042410,1733244640508,-500.0,0.00030136,7]
[344042411,1733244640518,-500.0,0.00030136,7]
[344042412,1733244640528,-500.0,0.00030136,7]
[344042413,1733244640537,-500.0,0.00030136,7]
[344042414,1733244640547,-199.91456895,0.00030136,7]
[344042415,1733244640556,-500.0,0.00030136,7]
[344042416,1733244640566,-296.02156317,0.00030136,7]
[344042417,1733244640576,-500.0,0.00030136,7]
[344042418,1733244640585,-500.0,0.00030136,7]
[344042419,1733244640595,-500.0,0.00030136,7]
[344042420,1733244640605,-500.0,0.00030136,7]
[344042421,1733244640614,-500.0,0.00030136,7]
[344042422,1733244640623,-641.19511504,0.00030136,7]
[344042423,1733244640633,-500.0,0.00030136,7]
[344042424,1733244640643,-500.0,0.00030136,7]
[344042425,1733244640652,-500.0,0.00030136,7]
[344042426,1733244640663,-631.81849566,0.00030136,7]
[344042427,1733244640673,-500.0,0.00030136,7]
[344042428,1733244640682,-598.28276402,0.00030136,7]
[344042429,1733244640692,-500.0,0.00030136,7]
[344042430,1733244640702,-500.0,0.00030136,7]
[344042431,1733244640711,-500.0,0.00030136,7]
[344042432,1733244640720,-639.89,0.00030136,7]
[344042433,1733244640730,-518.93846474,0.00030136,7]
[344042434,1733244640740,-500.0,0.00030136,7]
[344042435,1733244640749,-515.52008227,0.00030136,7]
[344042436,1733244640759,-501.61998695,0.00030136,7]
[344042437,1733244640768,-500.0,0.00030136,7]
[344042438,1733244640777,-500.0,0.00030136,7]
[344042439,1733244640787,-505.75222231,0.00030136,7]
[344042440,1733244640797,-500.0,0.00030136,7]
[344042441,1733244640807,-543.68173173,0.00030136,120]
[344042442,1733244640817,-501.95080589,0.00030136,7]
[344042443,1733244640827,-500.0,0.00030136,7]
[344042444,1733244640836,-503.85456071,0.00030136,7]
[344042445,1733244640846,-500.0,0.00030136,7]
[344042446,1733244640855,-500.0,0.00030136,7]
[344042447,1733244640865,-500.0,0.00030136,7]
[344042448,1733244640874,-500.0,0.00030136,7]
[344042449,1733244640884,-500.0,0.00030136,7]
[344042450,1733244640893,-500.0,0.00030136,7]
[344042451,1733244640903,-500.0,0.00030136,7]
[344042452,1733244640914,-500.0,0.00030136,7]
[344042453,1733244640923,-500.0,0.00030136,7]
[344042454,1733244640933,-500.0,0.00030136,7]
[344042455,1733244640942,-502.1835736,0.00030136,7]
[344042456,1733244640951,-500.0,0.00030136,7]
[344042457,1733244640960,-500.0,0.00030136,7]
[344042458,1733244640969,-500.0,0.00030136,7]
[344042459,1733244640979,-500.0,0.00030136,7]
[344042460,1733244641064,-500.0,0.00030136,7]
[344042461,1733244641075,-500.0,0.00030136,7]
[344042462,1733244641085,-500.0,0.00030136,7]
[344042463,1733244641094,-318.71074957,0.00030136,7]
[344042464,1733244641103,-500.0,0.00030136,7]
[344042465,1733244641113,-500.0,0.00030136,7]
[344042466,1733244641127,-168.8203895,0.00030136,7]
[344042467,1733244641136,-500.0,0.00030136,7]
[344042468,1733244641146,-500.0,0.00030136,7]
[344042469,1733244641155,-500.0,0.00030136,7]
[344042470,1733244641167,-500.0,0.00030136,7]
[344042471,1733244641177,-443.37033891,0.00030136,7]
[344042472,1733244641188,-500.0,0.00030136,7]
[344042473,1733244641198,-500.0,0.00030136,7]
[344042474,1733244641207,-500.0,0.00030136,7]
[344042475,1733244641216,-500.0,0.00030136,7]
[344042476,1733244641227,-500.0,0.00030136,7]
[344042477,1733244641236,-470.48867437,0.00030136,7]
[344042478,1733244641291,-29.51132563,0.00030136,7]
[344042479,1733244641302,-500.0,0.00030136,7]
[344042480,1733244641313,-89.47851311,0.00030136,7]
[344042481,1733244641395,-1449.24,0.0002849,10]
[344042482,1733244641405,-1169.27083333,0.0003,7]
[344042483,1733244641417,-1169.27083333,0.0003,7]
[344042484,1733244641428,-1169.27083333,0.0003,7]
[344042485,1733244641438,-410.52148689,0.00030136,7]
[344042486,1733244641448,-500.0,0.00030136,7]
[344042487,1733244641458,-500.0,0.00030136,7]
[344042488,1733244641468,-500.0,0.00030136,7]
[344042489,1733244641478,-500.0,0.00030136,7]
[344042490,1733244641488,-500.0,0.00030136,7]
[344042491,1733244641498,-500.0,0.00030136,7]
[344042492,1733244641508,-500.0,0.00030136,7]
[344042493,1733244641517,-500.0,0.00030136,7]
[344042494,1733244641527,-500.0,0.00030136,7]
[344042495,1733244641537,-500.0,0.00030136,7]
[344042496,1733244641547,-500.0,0.00030136,7]
[344042497,1733244641556,-500.0,0.00030136,7]
[344042498,1733244641567,-617.89,0.00030136,7]
[344042499,1733244641576,-500.0,0.00030136,7]
[344042500,1733244641585,-500.0,0.00030136,7]
[344042501,1733244641595,-500.0,0.00030136,7]
[344042502,1733244641604,-500.0,0.00030136,7]
[344042503,1733244641614,-549.58364406,0.00030136,7]
[344042504,1733244641624,-500.0,0.00030136,7]
[344042505,1733244641634,-500.0,0.00030136,7]
[344042506,1733244641643,-500.0,0.00030136,7]
[344042507,1733244641653,-500.0,0.00030136,7]
[344042508,1733244641664,-500.0,0.00030136,7]
[344042509,1733244641673,-500.0,0.00030136,7]
[344042510,1733244641683,-500.0,0.00030136,7]
[344042511,1733244641693,-500.0,0.00030136,7]
[344042512,1733244641703,-500.0,0.00030136,7]
[344042513,1733244641712,-500.0,0.00030136,7]
[344042514,1733244641722,-500.0,0.00030136,7]
[344042515,1733244641731,-500.0,0.00030136,7]
[344042516,1733244641741,-500.0,0.00030136,7]
[344042517,1733244641750,-500.0,0.00030136,7]
[344042518,1733244641759,-500.0,0.00030136,7]
[344042519,1733244641769,-500.0,0.00030136,7]
[344042520,1733244641779,-500.0,0.00030136,7]
[344042521,1733244641789,-500.0,0.00030136,7]
[344042522,1733244641800,-500.0,0.00030136,7]
[344042523,1733244641810,-500.0,0.00030136,7]
[344042524,1733244641819,-500.0,0.00030136,7]
[344042525,1733244641829,-500.0,0.00030136,7]
[344042526,1733244641839,-500.0,0.00030136,7]
[344042527,1733244641848,-500.0,0.00030136,7]
[344042528,1733244641858,-223.9,0.00030136,7]
[344042529,1733244641868,-500.0,0.00030136,7]